[Event "Mitropa Cup Open 2022"]
[Site "Corte"]
[Date "2022.05.08"]
[Round "9.3"]
[White "Koelle, Tobias"]
[Black "Diermair, Andreas"]
[Result "0-1"]
[ECO "E17"]
[WhiteElo "2431"]
[BlackElo "2461"]
[Annotator "TA"]
[PlyCount "62"]
[EventDate "2022.04.30"]
[EventType "team-tourn"]
[EventCountry "FRA"]
[SourceTitle "playchess.com"]
[Source "ChessBase"]
[SourceQuality "1"]
[WhiteTeam "Germany"]
[BlackTeam "Austria"]
[WhiteTeamCountry "GER"]
[BlackTeamCountry "AUT"]
[TimeControl "40/5400+30:1800+30"]

{[%evp 19,62,20,37,41,17,29,27,9,44,-9,10,18,19,22,31,-27,-27,-95,-97,-220,-212,-233,-225,-205,-195,-140,-127,-523,-516,-506,-514,-527,-419,-410,-395,-1162,-1172,-29974,-29974,-29988,-29989,-29966,-1934,-1464,-946]} 1. d4 {[%emt 0:00:13]} Nf6 {[%emt 0:00:08]} 2. c4 {[%emt 0:00:05]} e6 {[%emt 0:00:03]} 3. Nf3 {[%emt 0:00:03]} b6 {[%emt 0:02:18]} 4. g3 {[%emt 0:00:04]} Bb7 {[%emt 0:01:19]} 5. Bg2 {[%emt 0:00:05]} Be7 {[%emt 0:00:12]} 6. O-O {[%emt 0:00:05]} O-O {[%emt 0:00:04]} 7. Re1 {[%emt 0:00:02]} d5 {[%emt 0:00:41]} 8. cxd5 {[%emt 0:00:05]} exd5 {[%emt 0:00:03]} 9. Nc3 {[%emt 0:00:14]} Na6 {[%emt 0:00:24]} 10. Bf4 {[%emt 0:01:31]} c5 {[%emt 0:03:01]} 11. e3 {[%emt 0:01:56] E17: Queen's Indian: 4 g3 Bb7 5 Bg2 Be7.} Ne4 {[%emt 0:12:10] has lost popularity (11...Nc7).} 12. h4 {[%emt 0:00:41] [#]} Nc7 $146 {[%emt 0:06:33]} ({Predecessor:} 12... cxd4 13. exd4 Nxc3 14. bxc3 Nc7 15. Ng5 h6 16. Nh3 Ne8 17. Qe2 Bd6 18. Be5 Nf6 {1-0 (34) Sasikiran,K (2690)-Brynell,S (2492) Cappelle la Grande 2011}) 13. Ne5 {[%emt 0:04:31] Threatens to win with Bxe4. White has an edge.} f6 {[%emt 0:17:35]} 14. Ng4 {[%emt 0:17:27]} (14. Nd3 $14) 14... Rc8 {[%emt 0:17:44][%cal Ba8c8,Bc8c7,Bc7e7,Be7e3][%mdl 32]} 15. dxc5 {[%emt 0:03:02]} Bxc5 {[%emt 0:02:03]} 16. Bxc7 {[%emt 0:05:29]} Rxc7 {[%emt 0:00:17]} 17. Nb5 {[%emt 0:01:00]} ({Better is} 17. Qb3 $14 Nxc3 18. bxc3) 17... Re7 $11 {[%emt 0:01:49]} 18. a3 {[%emt 0:03:58]} (18. Nh2 $11 {remains equal.}) 18... f5 $17 {[%emt 0:04:48]} 19. Nh2 {[%emt 0:00:32]} (19. Bxe4 $17 {was the only chance.} fxe4 20. b4) 19... f4 {[%emt 0:02:44]} 20. gxf4 {[%emt 0:03:22] [#]} Nxf2 $1 {[%emt 0:11:21][%mdl 512]} 21. Kxf2 {[%emt 0:04:40] [#]} Rxe3 {[%emt 0:00:12][%mdl 576] Discovered Attack} 22. Rxe3 {[%emt 0:02:36][%cal Oh2f3] Nf3! is the strong threat.} Qxh4+ {[%emt 0:00:06]} 23. Kg1 $2 {[%emt 0:02:02][%mdl 8192]} (23. Ke2 $17 Qxh2 24. Qg1 (24. Qh1 $2 Qxf4 25. Bxd5+ Kh8 $19) 24... Qxf4 25. Rc1) 23... Bxe3+ $19 {[%emt 0:00:16]} 24. Kh1 {[%emt 0:00:01]} Bxf4 {[%emt 0:00:58][%csl Gf4][%cal Rh4h2] A strong pair of Bishops.} 25. Qg1 {[%emt 0:00:03]} Rf6 {[%emt 0:02:11][%cal Bf8f6,Bf6h6,Bh6h2,Bh2g2][%mdl 32] Strongly threatening ...Rh6.} 26. Nd4 {[%emt 0:00:45]} Rh6 {[%emt 0:01:15] White must now prevent ...Qg3.} ({Don't go for} 26... Bxh2 $2 27. Qxh2 Rh6 28. Qxh4 Rxh4+ 29. Kg1 Rxd4 30. Rc1 $19) 27. Ndf3 $2 {[%emt 0:03:42]} (27. Nf5 Qxh2+ 28. Qxh2 Rxh2+ 29. Kg1) 27... Qg3 {[%emt 0:00:17][%cal Od5d4] ( -> ...d4!)} 28. Re1 {[%emt 0:14:17]} d4 {[%emt 0:00:32]} 29. Qf1 {[%emt 0:05:35]} Rxh2+ {[%emt 0:00:29]} 30. Kg1 {[%emt 0:00:04] [#]} Be3+ {[%emt 0:00:36]} ({Don't play} 30... Bxf3 31. Qc4+) (30... Ba6 $142 $1 {[%mdl 512]} 31. Qf2 {[#]} (31. Re8+ Kf7) 31... Rh1+ $3 {[%mdl 512]} 32. Kxh1 Qxf2 33. Re8+ Kf7 34. Re4 Be3 35. Kh2 Bf1 36. Ne1 Qxe1 37. Kh3 Bxg2+ 38. Kxg2 g5 39. Rg4 Qf2+ 40. Kh1 Bf4 41. Rxf4+ gxf4 42. b4 f3 43. b5 Qg2#) 31. Rxe3 {[%emt 0:00:05] [#]} Rxg2+ $1 {[%emt 0:00:09][%mdl 512] Weighted Error Value: White=0.98/Black=0.36} 0-1

[Event "Mitropa Cup Open 2022"]
[Site "Corte"]
[Date "2022.05.08"]
[Round "9.3"]
[White "Roux, Baptiste"]
[Black "Laurent-Paoli, Pierre"]
[Result "0-1"]
[ECO "C01"]
[WhiteElo "2072"]
[BlackElo "2486"]
[Annotator "TA"]
[PlyCount "66"]
[EventDate "2022.04.30"]
[EventType "team-tourn"]
[EventCountry "FRA"]
[SourceTitle "playchess.com"]
[Source "ChessBase"]
[SourceQuality "1"]
[WhiteTeam "France"]
[BlackTeam "France"]
[WhiteTeamCountry "FRA"]
[BlackTeamCountry "FRA"]
[TimeControl "40/5400+30:1800+30"]

{[%evp 11,66,19,33,0,0,0,10,0,0,0,9,6,20,0,0,0,-3,0,-11,-12,-15,-48,-23,-226,0,-1,19,7,4,-46,-46,-50,-61,-56,-50,-56,-62,-56,-56,-57,-57,-100,0,-116,-116,-301,-282,-29987,-29988,-29988,-29989,-29989,-29990,-29993,-29994,-29994,-29988]} 1. e4 {[%emt 0:00:05]} e6 {[%emt 0:00:56][%cal Be7e6,Be6d5][%mdl 32]} 2. d4 {[%emt 0:00:20]} d5 {[%emt 0:00:06]} 3. exd5 {[%emt 0:01:14]} exd5 {[%emt 0:00:06]} 4. Nf3 {[%emt 0:00:05]} h6 {[%emt 0:00:59]} 5. Bd3 {[%emt 0:05:01]} Bd6 {[%emt 0:00:22]} 6. O-O {[%emt 0:05:03]} Ne7 {[%emt 0:00:21]} 7. c4 {[%emt 0:07:50] C01: French: Exchange Variation.} dxc4 {[%emt 0:04:37]} 8. Bxc4 {[%emt 0:00:08]} O-O {[%emt 0:00:16]} 9. Nc3 {[%emt 0:01:46] The position is equal.} Nbc6 {[%emt 0:05:11]} 10. h3 {[%emt 0:04:15]} Bf5 {[%emt 0:10:31]} 11. Re1 {[%emt 0:06:35]} Ng6 {[%emt 0:04:33] [#]} 12. d5 $146 {[%emt 0:20:03]} ({Predecessor:} 12. Be3 a6 13. g4 Bd7 14. Ne4 Bb4 15. Bd2 Bxd2 16. Qxd2 Nh4 17. Nxh4 Qxh4 18. Re3 {0-1 (28) Murphy,H (2152)-Pert,N (2557) England 2013}) 12... Nce5 {[%emt 0:10:46]} 13. Bf1 {[%emt 0:00:06]} Nxf3+ {[%emt 0:01:38]} 14. Qxf3 {[%emt 0:02:07]} Nh4 {[%emt 0:03:16]} 15. Qd1 {[%emt 0:15:35]} Qf6 {[%emt 0:12:39]} 16. Be3 Rfe8 ({But not} 16... Qe5 17. g3 $16) (16... Qg6 {feels hotter.} 17. Kh1 Rfe8 18. Nb5 Bb4) 17. g3 $2 {[%emt 0:10:47]} (17. Qd4 $11) 17... Ng6 $2 {[%emt 0:03:40]} (17... Qg6 $1 $19 {[%cal Od6g3] Hoping for ...Bxg3!} 18. Qe2 Bf4 $1 19. Bxf4 Rxe2 20. Rxe2 Nf3+ 21. Kg2 Ng5 22. Bxg5 hxg5) 18. Bg2 $11 {[%emt 0:01:19]} Ne5 {[%emt 0:01:54]} 19. Bd4 {[%emt 0:01:56]} Qg6 {[%emt 0:01:19]} 20. Qb3 {[%emt 0:02:45] [#]} (20. Ne4 $11) 20... Bxh3 $1 $15 21. Bxe5 {[%emt 0:00:34]} Bxg2 $1 {[%emt 0:05:29]} 22. Kxg2 {[%emt 0:00:30]} Bxe5 {[%emt 0:01:18]} 23. Qxb7 {[%emt 0:01:24][%cal Oe1e5]} Rab8 {[%emt 0:00:57]} 24. Qxa7 {[%emt 0:01:22][%cal Oe1e5]} Rxb2 {[%emt 0:01:05] ( -> ...Qxg3+)} 25. Qe3 {[%emt 0:00:32]} Re7 {[%emt 0:05:49] White must now prevent ...Rc2.} 26. Qf3 {[%emt 0:03:11] [#]} h5 {[%emt 0:05:44] Black is more active.} (26... Bd4 $1 $17 27. Rxe7 Rxf2+ 28. Qxf2 Bxf2 29. Re8+ Kh7 30. Kxf2 Qf6+ 31. Kg2 Qxc3) 27. Rac1 {[%emt 0:02:08] [#]} (27. Rab1 $11 {keeps the balance.} Rxb1 28. Rxb1) 27... h4 $1 $36 {[%mdl 2048] ...hxg3 is the strong threat. White is under strong pressure.} 28. g4 {[%emt 0:04:38]} (28. d6 $17 {keeps fighting.} Bxd6 29. Rxe7 Bxe7 30. Re1) 28... f5 $19 {[%emt 0:06:35]} 29. Qxf5 {[%emt 0:00:19] [#]} (29. d6 $19 cxd6 30. Nd5) 29... Rf7 $1 {[%emt 0:00:12][%mdl 512] Black mates.} 30. Qc8+ {[%emt 0:03:05]} Rf8 {[%emt 0:00:28]} 31. Qxf8+ {[%emt 0:00:26]} Kxf8 {[%emt 0:00:04]} 32. Rxe5 {[%emt 0:00:04]} Qxg4+ {[%emt 0:00:05]} 33. Kf1 {[%emt 0:00:09]} Qf4 {[%emt 0:00:43] Weighted Error Value: White=0.49/Black=0.20 (precise)} 0-1

[Event "Mitropa Cup Open 2022"]
[Site "Corte"]
[Date "2022.05.08"]
[Round "9.4"]
[White "Loiseau, Quentin"]
[Black "Bouslimi, Nabil"]
[Result "0-1"]
[ECO "A60"]
[WhiteElo "2445"]
[BlackElo "2065"]
[Annotator "TA"]
[PlyCount "146"]
[EventDate "2022.04.30"]
[EventType "team-tourn"]
[EventCountry "FRA"]
[SourceTitle "playchess.com"]
[Source "ChessBase"]
[SourceQuality "1"]
[WhiteTeam "France"]
[BlackTeam "France"]
[WhiteTeamCountry "FRA"]
[BlackTeamCountry "FRA"]
[TimeControl "40/5400+30:1800+30"]

{[%evp 13,146,33,43,39,31,51,25,0,4,14,5,7,4,10,6,-6,32,29,37,37,27,16,20,23,19,14,4,0,0,-10,-7,-11,-7,-8,0,0,-4,-26,-2,-4,6,4,62,70,209,155,375,179,179,208,228,234,245,0,5281,90,88,-131,-146,-133,0,0,224,225,606,-221,-221,-221,0,0,0,0,0,-118,-101,-101,-101,-162,-161,-190,-196,-545,-541,-554,-537,-645,-639,-622,-497,-489,-488,-472,-481,-461,-327,-356,-363,-479,-475,-457,-439,-500,-217,-213,-71,-71,-71,-70,-40,-4368,-647,-29979,-10,-466,-496,-487,-478,-470,-424,-458,-452,-640,-1062,-29955,-1864,-1027,-1016,-29978,-29979,-29987,-29988,-29988,-29989,-29991,-29992]} 1. d4 {[%emt 0:00:03]} Nf6 {[%emt 0:00:06]} 2. c4 {[%emt 0:00:11]} c5 {[%emt 0:00:07]} 3. d5 {[%emt 0:00:07]} e6 {[%emt 0:00:07]} 4. Nf3 {[%emt 0:00:28]} exd5 {[%emt 0:00:09]} 5. cxd5 {[%emt 0:00:07]} d6 {[%emt 0:00:04]} 6. e4 {[%emt 0:00:11]} g6 {[%emt 0:01:57]} 7. h3 {[%emt 0:00:28]} Bg7 {[%emt 0:00:14]} 8. Bd3 {[%emt 0:00:25] E10: Blumenfeld Gambit.} O-O {[%emt 0:00:13][%cal Of6e4]} 9. O-O {[%emt 0:00:53]} b5 {[%emt 0:03:45]} 10. a4 {[%emt 0:06:59] White has an edge.} c4 {[%emt 0:06:45] [#]} 11. Be2 $146 {[%emt 0:01:28]} ({Predecessor:} 11. Bc2 b4 12. Nbd2 Ba6 13. Re1 Re8 14. Nf1 Nbd7 15. Nd4 b3 16. Bb1 Nc5 17. f3 Nxd5 {0-1 (25) Hevesi,Z (2097)-Somogyi,I (2175) Hungary 2010}) 11... b4 {[%emt 0:06:09]} 12. Bxc4 {[%emt 0:05:25]} Nxe4 {[%emt 0:00:45]} 13. Qe1 {[%emt 0:01:38]} Re8 {[%emt 0:01:58]} 14. Qxb4 {[%emt 0:05:57]} a5 {[%emt 0:00:34]} 15. Qb3 {[%emt 0:01:39]} Na6 {[%emt 0:02:10]} 16. Bb5 {[%emt 0:09:53]} Bd7 {[%emt 0:02:15]} 17. Na3 {[%emt 0:08:09]} Nec5 {[%emt 0:04:15]} 18. Qd1 {[%emt 0:00:39]} Re4 {[%emt 0:07:14]} 19. Bg5 {[%emt 0:05:22]} Qc8 {[%emt 0:08:02][%cal Od7h3]} 20. Re1 {[%emt 0:11:54]} Bxb2 {[%emt 0:06:12]} 21. Ra2 {[%emt 0:03:35]} Bg7 {[%emt 0:00:58][%cal Od7h3]} 22. Rae2 {[%emt 0:07:24]} Rxe2 {[%emt 0:03:40]} 23. Rxe2 {[%emt 0:00:41]} Nb4 {[%emt 0:00:44]} 24. Bf4 {[%emt 0:04:51]} Bf8 {[%emt 0:05:01]} 25. Bg3 {[%emt 0:07:48]} Qb7 {[%emt 0:05:47]} 26. Bxd7 $1 {[%emt 0:02:34]} Nxd7 {[%emt 0:00:13]} 27. Nb5 {[%emt 0:00:33]} Qxd5 {[%emt 0:04:30]} (27... Nxd5 $11 28. Bxd6 (28. Nxd6 $2 Bxd6 29. Bxd6 Nc3 $19) 28... N7b6) 28. Rd2 $14 {[%emt 0:00:36]} Qc6 {[%emt 0:14:46]} (28... Qc5 $14) 29. Nxd6 {[%emt 0:00:51]} Nb6 $2 {[%emt 0:06:06] [#]} (29... Bh6 $16) 30. Nxf7 $1 {[%emt 0:03:16][%mdl 512]} Qxa4 $18 {[%emt 0:00:30] [#]} 31. Qe2 {[%emt 0:00:39]} Qe8 {[%emt 0:01:00] Prevents Qe6.} (31... Re8 32. N3e5) 32. N3e5 {[%emt 0:02:41]} a4 {[%emt 0:04:20]} 33. Qg4 $2 {[%emt 0:00:38]} (33. Qf3 $18 {Qf6 is the strong threat.} Nc6 34. Ng4 Qe1+ 35. Kh2 Qxd2 36. Qxc6 Kxf7 37. Qf6+ Kg8 38. Be5) 33... Qc8 $2 {[%emt 0:01:48][%mdl 8192] [#]} (33... N4d5 $11) 34. Qf4 $2 {[%emt 0:00:12]} (34. Nh6+ $1 $18 {[%mdl 512]} Kg7 (34... Bxh6 35. Rd8+) 35. Nd7 $1) 34... Qf5 $16 {[%emt 0:01:14]} 35. Qh4 {[%emt 0:05:00]} (35. Nh6+ $1 $16 {is forced if you want to stay better.} Bxh6 36. Qxh6) 35... N6d5 $17 {[%emt 0:00:49]} 36. Qc4 {[%emt 0:02:02]} (36. Ng5 h6 37. Ngf7 h5) 36... Rc8 {[%emt 0:00:16]} (36... Ra5 $1 $17 {aiming for ...a3.} 37. Qd4 Ra8) 37. Qb5 $1 $11 {[%emt 0:00:32]} Nc3 {[%emt 0:01:10]} (37... Rc7 $11) 38. Qb7 $18 {[%emt 0:00:39][%cal Of7g5]} Ne4 {[%emt 0:00:52] [#] Against Ng5} (38... Re8 39. Ng5 Re7 40. Qxb4 Rxe5 41. Qc4+ Rd5) 39. Rd7 $4 {[%emt 0:00:48][%mdl 8192]} (39. Rd1 Re8 $11) (39. Ng4 $1 $18 {[%cal Rg4h6][%mdl 512] was the only winning move.} Nxg3 40. Ngh6+ Bxh6 41. Nxh6+ Kh8 42. fxg3 (42. Nxf5 Rc1+ 43. Rd1 Rxd1+ 44. Kh2 Nf1+ 45. Kh1 Ng3+ 46. Kh2 Nf1+ 47. Kh1 Ng3+ 48. Kh2 $11) 42... Qc5+ 43. Kh2) 39... Rc1+ $1 $19 {[%emt 0:00:32]} 40. Kh2 {[%emt 0:00:11] Rd8 would kill now.} Nxg3 $2 {[%emt 0:00:26] Chess con chili.} (40... Nxf2 $19 {( -> ...Rh1#)} 41. Bxf2 (41. Nh6+ $2 Bxh6 42. Bxf2 Qxe5+ $19) 41... Qxf2 42. Nh6+ Bxh6 43. Rd8+ Bf8 44. Qxb4 Qf6) 41. Kxg3 $11 {[%emt 0:04:20]} g5 $1 {[%emt 0:05:45][%csl Gg5][%cal Rf5f4]} 42. Rd4 {[%emt 0:04:04] Inhibits Qf4+.} Nc6 $40 {[%emt 0:07:26][%mdl 128] Black attacks.} 43. Nxc6 {[%emt 0:16:31]} ({Don't blunder} 43. Nh6+ $2 Bxh6 44. Nxc6 Rxc6 $1 {[%mdl 512]} 45. Qxc6 Qe5+ 46. Kf3 Qxd4 $19) (43. Qa8 $1 $11 {was the only way to keep the balance.} Kg7 44. Qb7 (44. Rg4 h6 $17)) 43... Qxf7 {[%emt 0:01:29]} (43... Rc3+ {with more complications.} 44. f3 Qxf7 45. Qxf7+ Kxf7 46. Nd8+ Ke7) 44. Qxf7+ {[%emt 0:00:06]} Kxf7 {[%emt 0:00:07][%mdl 4096] Endgame KRB-KRN} 45. Ne5+ {[%emt 0:00:10]} (45. Nd8+ $17 {might work better.} Ke7 46. Rxa4 Kxd8 47. h4) 45... Ke6 $19 {[%emt 0:00:14]} 46. Nf3 {[%emt 0:00:04]} a3 {[%emt 0:02:37]} 47. Nxg5+ $2 {[%emt 0:00:11]} (47. Ra4) 47... Kf5 {[%emt 0:00:12] Strongly threatening ...a2.} 48. Rd5+ {[%emt 0:02:04]} Kg6 {[%emt 0:00:50] Hoping for ...a2.} 49. Ne6 {[%emt 0:00:29]} Bb4 {[%emt 0:00:32]} 50. Nf4+ {[%emt 0:02:13]} Kf6 {[%emt 0:00:17] And now ...a2 would win.} 51. Nh5+ {[%emt 0:00:35]} Ke7 {[%emt 0:03:46]} 52. Re5+ {[%emt 0:00:06]} Kd6 {[%emt 0:00:03]} 53. Re2 {[%emt 0:00:06]} Rc3+ {[%emt 0:00:39]} 54. f3 {[%emt 0:02:02]} Rb3 {[%emt 0:00:07]} 55. Ra2 {[%emt 0:01:16]} Rb2 {[%emt 0:00:24]} 56. Ra1 {[%emt 0:00:01]} Ke5 {[%emt 0:01:20] Against Nf6} 57. f4+ {[%emt 0:00:53]} Ke4 {[%emt 0:01:30]} (57... Kf5 $142 58. Ng7+ Kg6) 58. Nf6+ {[%emt 0:00:15]} Kd4 {[%emt 0:00:06]} (58... Kd3 $19 {and Black stays clearly on top. White must now prevent ...a2.} 59. f5 a2) 59. Nxh7 $17 {[%emt 0:00:25]} a2 {[%emt 0:00:15]} 60. f5 {[%emt 0:03:10]} Be1+ {[%emt 0:07:34][%mdl 1024] Black has compensation.} 61. Kh2 $2 {[%emt 0:01:13][%mdl 8192]} ({Don't go for} 61. Rxe1 $2 Rb1 62. Re6 a1=Q $19) (61. Kg4 $15) 61... Bc3 {[%emt 0:01:00]} (61... Bh4 $142 62. Rxa2 Rxa2) 62. f6 {[%emt 0:00:33] [#]} Kd5 $2 {[%emt 0:00:04]} (62... Ke3 $1 {mates} 63. h4 {[#]} Rxg2+ $3 {[%mdl 512]} 64. Kxg2 Bxa1 65. Kg3 Be5+ 66. Kg4 a1=Q 67. Kf5 Bc3 68. Ke6 Qa6+ 69. Kf7 Qb7+ 70. Kg8 Qe4 71. h5 Qg4+ 72. Kf7 Qxh5+ 73. Kg7 Qf5 74. Kh6 Bxf6 75. Nxf6 Qxf6+ 76. Kh7 Kf4 77. Kg8 Qe7 78. Kh8 Kf5 79. Kg8 Kg6 80. Kh8 Qh7#) 63. f7 $2 {[%emt 0:01:49][%mdl 8192]} (63. Rxa2 $1 $11 {and White stays safe.} Be5+ 64. Kg1 Bd4+ 65. Kh2 Rxa2 66. f7 Be5+ 67. Kg1) 63... Be5+ $19 {[%emt 0:00:07]} 64. Kg1 {[%emt 0:00:05]} Rb1+ {[%emt 0:00:38][%mdl 64] Discovered Attack, Double Attack} 65. Kf2 {[%emt 0:00:14]} Bxa1 {[%emt 0:00:05]} 66. f8=Q {[%emt 0:00:17] Against Bg7} Bd4+ {[%emt 0:00:04]} 67. Ke2 {[%emt 0:00:44]} (67. Kg3 $142 a1=Q 68. Kg4) 67... a1=Q {[%emt 0:00:32]} 68. Qf7+ {[%emt 0:00:20]} Kc6 {[%emt 0:00:20]} (68... Kd6 $142 69. Qf4+ Kc6 70. Qe4+ Kc7 71. Qf4+ Kc8 72. Qf8+ Kb7 73. Qf7+ Kb8 74. Qg8+ Ka7 75. Kf3 Qa4 76. Qf7+ Rb7 77. Qg6 Rb3+ 78. Kg4 Bf2+ 79. Kg5 Qh4+ 80. Kf5 Rb5+ 81. Ke6 Qc4+ 82. Kd6 Qc5+ 83. Ke6 Qc6+ 84. Kf7 Rb7+ 85. Kg8 Qxg6+ 86. Kh8 Rxh7#) 69. Qe6+ {[%emt 0:00:30]} Kb7 {[%emt 0:00:20]} 70. Qd5+ {[%emt 0:00:28]} Ka7 {[%emt 0:00:07] Black mates.} 71. Ng5 {[%emt 0:00:28]} Re1+ {[%emt 0:00:37]} 72. Kf3 {[%emt 0:00:13]} Qd1+ {[%emt 0:00:12]} 73. Kf4 {[%emt 0:00:12]} Be3+ {[%emt 0:00:21] Quite a comeback for Black.  Weighted Error Value: White=0.58/Black=0.41} 0-1